Workbook

Sheet Mortgage
B2: Real estate value | C2: Principal
B3: 100000 | C3: 100000
D6: nper | E6: rate per annum | G6: payment | H6: to be paid in total
B7: annual | D7: 30 | E7: 0.051 | F7: annual rate | G7: =PMT($E$7,$D$7,-$C$3) -> 6579.484358 | H7: =G7*D7 -> 197384.5307
B8: monthly | D8: =12*D7 -> 360 | E8: =E7/12 -> 0.00425 | F8: annual rate/12 | G8: =PMT(E8,D8,-$C$3) -> 542.9497734 | H8: =G8*D8 -> 195461.9184
B9: monthly - compounded | D9: 360 | E9: =POWER(1+E7,1/12) -> 1.004153777 | F9: (1+r)^1/12 | G9: =PMT(E9-1,D9,-$C$3) -> 535.8767394 | H9: =G9*D9 -> 192915.6262

Sheet Mortgage (2)
B2: Real estate value | C2: Principal P
B3: 120000 | C3: 100000
B6: periodicity | D6: nper | E6: interest rate | F6: interest | G6: payment | I6: to be paid in total
B7: annual | D7: 30 | E7: 0.051 | G7: =PMT($E$7,$D$7,-$C$3) -> 6579.484358 | H7: = P x r / (1-1/(1+r)^N) | I7: =G7*D7 -> 197384.5307 | J7: = PMT x N
B8: monthly | D8: =12*D7 -> 360 | E8: =E7/12 -> 0.00425 | F8: annual rate/12 | G8: =PMT(E8,D8,-$C$3) -> 542.9497734 | I8: =G8*D8 -> 195461.9184
B9: monthly compounded | D9: 360 | E9: =POWER(1+E7,1/12)-1 -> 0.004153777443 | F9: compounded (1+r)^1/12 | G9: =PMT(E9,D9,-$C$3) -> 535.8767394 | I9: =G9*D9 -> 192915.6262
H11: =C3*E7*POWER(1+E7, D7)/(POWER(1+E7,D7)-1) -> 6579.484358
H12: =C3*E7/(1-1/POWER(1+E7,D7)) -> 6579.484358
B14: What is the split in interests vs. principal payment in the payment | E14: interest payment | F14: interest payment | G14: principal payment | H14: principal payment
E15: = P x r | F15: =C3*E7 -> 5100 | G15: = PMT - P x r | H15: =G7-F15 -> 1479.484358

Sheet Mortgage (3)
A2: Mortgage reduction
B5: Principal | C5: outstanding nper | D5: Interest rate (monthly) | E5: Standard payment | F5: Advance payment | G5: Type: 0 - payment reduction 1 - duration reduction | H5: Cummulative payment | I5: Δ nper | J5: Payment | K5: Interests split | L5: principal split | M5: Paid in total
B6: 100000 | C6: 360 | D6: =5.64/1200 -> 0.0047 | E6: =PMT(D6,C6, -B6) -> 576.6038003 | F6: 0 | G6: 0 | H6: =E6+F6 -> 576.6038003 | I6: =IF(G6=1, LoanReducedPeriods(D6,C6,B6,F6), 1) -> 1 | J6: =E6 -> 576.6038003 | K6: =B6*D6 -> 470 | L6: =J6-K6 -> 106.6038003 | M6: =C6*J6 -> 207577.3681
B11: =B6-L6-F6 -> 99893.3962 | C11: =C6-I6 -> 359 | D11: =5.64/1200 -> 0.0047 | E11: =PMT(D11,C11, -B11) -> 576.6038003 | F11: 10000 | G11: 1 | H11: =H6+E11+F11 -> 11153.2076 | I11: =IF(G11=1, LoanReducedPeriods(D11,C11,B11,F11), 1) -> 78 | J11: =E11 -> 576.6038003 | K11: =B11*D11 -> 469.4989621 | L11: =J11-K11 -> 107.1048381 | M11: =(C11-I11+1)*E11+H11 -> 173755.4793
B12: =B11-F11-L11 -> 89786.29136 | C12: =C11-I11 -> 281 | D12: 0.0047 | E12: 576.3199869 | F12: 0 | G12: 0 | H12: =H11+E12+F12 -> 11729.52759 | I12: =IF(G12=1, LoanReducedPeriods(D12,C12,B12,F12), 1) -> 1 | J12: =E12 -> 576.3199869 | K12: =B12*D12 -> 421.9955694 | L12: =J12-K12 -> 154.3244175 | M12: =(C12-I12+1)*E12+H12 -> 173675.4439
B13: =B12-F12-L12 -> 89631.96694 | C13: =C12-I12 -> 280 | D13: 0.0047 | E13: =PMT(D13,C13, -B13) -> 576.3199869 | F13: 0 | G13: 0 | H13: =H12+E13+F13 -> 12305.84757 | I13: =IF(G13=1, LoanReducedPeriods(D13,C13,B13,F13), 1) -> 1 | J13: =E13 -> 576.3199869 | K13: =B13*D13 -> 421.2702446 | L13: =J13-K13 -> 155.0497422 | M13: 173675.4439
B14: 89476.9172 | C14: 279 | D14: 0.0047 | E14: 576.3199869 | F14: 0 | G14: 0 | H14: 12882.16756 | I14: 1 | J14: 576.3199869 | K14: 420.5415108 | L14: 155.778476 | M14: 173675.4439
B15: 89321.13873 | C15: 278 | D15: 0.0047 | E15: 576.3199869 | F15: 0 | G15: 0 | H15: 13458.48755 | I15: 1 | J15: 576.3199869 | K15: 419.809352 | L15: 156.5106349 | M15: 173675.4439
B16: 89164.62809 | C16: 277 | D16: 0.0047 | E16: 576.3199869 | F16: 10000 | G16: 0 | H16: 24034.80753 | I16: 1 | J16: 576.3199869 | K16: 419.073752 | L16: 157.2462348 | M16: 183675.4439
B17: 79007.38186 | C17: 276 | D17: 0.0047 | E17: 511.5703027 | F17: 0 | G17: 0 | H17: 24546.37784 | I17: 1 | J17: 511.5703027 | K17: 371.3346947 | L17: 140.2356079 | M17: 165739.7814
B18: 78867.14625 | C18: 275 | D18: 0.0047 | E18: 511.5703027 | F18: 0 | G18: 0 | H18: 25057.94814 | I18: 1 | J18: 511.5703027 | K18: 370.6755874 | L18: 140.8947153 | M18: 165739.7814
B19: 78726.25153 | C19: 274 | D19: 0.0047 | E19: 511.5703027 | F19: 0 | G19: 0 | H19: 25569.51844 | I19: 1 | J19: 511.5703027 | K19: 370.0133822 | L19: 141.5569204 | M19: 165739.7814
B20: 78584.69461 | C20: 273 | D20: 0.0047 | E20: 511.5703027 | F20: 0 | G20: 0 | H20: 26081.08875 | I20: 1 | J20: 511.5703027 | K20: 369.3480647 | L20: 142.222238 | M20: 165739.7814
B21: 78442.47237 | C21: 272 | D21: 0.0047 | E21: 511.5703027 | F21: 0 | G21: 0 | H21: 26592.65905 | I21: 1 | J21: 511.5703027 | K21: 368.6796202 | L21: 142.8906825 | M21: 165739.7814
B22: 78299.58169 | C22: 271 | D22: 0.0047 | E22: 511.5703027 | F22: 0 | G22: 0 | H22: 27104.22935 | I22: 1 | J22: 511.5703027 | K22: 368.008034 | L22: 143.5622687 | M22: 165739.7814
B23: 78156.01942 | C23: 270 | D23: 0.0047 | E23: 511.5703027 | F23: 0 | G23: 0 | H23: 27615.79965 | I23: 1 | J23: 511.5703027 | K23: 367.3332913 | L23: 144.2370114 | M23: 165739.7814
B24: 78011.78241 | C24: 269 | D24: 0.0047 | E24: 511.5703027 | F24: 0 | G24: 0 | H24: 28127.36996 | I24: 1 | J24: 511.5703027 | K24: 366.6553773 | L24: 144.9149253 | M24: 165739.7814
B25: 77866.86749 | C25: 268 | D25: 0.0047 | E25: 511.5703027 | F25: 0 | G25: 0 | H25: 28638.94026 | I25: 1 | J25: 511.5703027 | K25: 365.9742772 | L25: 145.5960255 | M25: 165739.7814
B26: 77721.27146 | C26: 267 | D26: 0.0047 | E26: 511.5703027 | F26: 0 | G26: 0 | H26: 29150.51056 | I26: 1 | J26: 511.5703027 | K26: 365.2899759 | L26: 146.2803268 | M26: 165739.7814
B27: 77574.99113 | C27: 266 | D27: 0.0047 | E27: 511.5703027 | F27: 0 | G27: 0 | H27: 29662.08086 | I27: 1 | J27: 511.5703027 | K27: 364.6024583 | L27: 146.9678443 | M27: 165739.7814
B28: 77428.02329 | C28: 265 | D28: 0.0047 | E28: 511.5703027 | F28: 0 | G28: 0 | H28: 30173.65117 | I28: 1 | J28: 511.5703027 | K28: 363.9117095 | L28: 147.6585932 | M28: 165739.7814

Sheet Sheet2
A3: Year | B3: Principal | C3: Interest rate | D3: Payment (annuity) | E3: Monthly payment | F3: Interest payment | G3: Principal payment | H3: Additional payment | I3: Short term interest rate | J3: Short debt | K3: Administrative costs
A4: 0 | B4: 100000 | C4: 0.0564 | D4: =PMT(C4,30-A4,-B4) -> 6987.274266 | E4: =D4/12 -> 582.2728555 | F4: =B4*C4 -> 5640 | G4: =D4-F4 -> 1347.274266 | H4: 0 | I4: 0.1 | J4: =H4*(1+I4) -> 0 | K4: 0 | L4: =30*D4 -> 209618.228
A5: 1 | B5: =B4-G4-H4 -> 98652.72573 | C5: 0.0564 | D5: 6987.274266 | E5: =D5/12 -> 582.2728555 | F5: =B5*C5 -> 5564.013731 | G5: =D5-F5 -> 1423.260535 | H5: 0 | I5: 0.1 | J5: =H5*(1+I5) -> 0 | K5: 0
A6: 2 | B6: =B5-G5-H5 -> 97229.4652 | C6: 0.0564 | D6: 6987.274266 | E6: 582.2728555 | F6: 5483.741837 | G6: =D6-F6 -> 1503.532429 | H6: 0 | I6: 0.1 | J6: 0 | K6: 0
A7: 3 | B7: 95725.93277 | C7: 0.0564 | D7: 6987.274266 | E7: 582.2728555 | F7: 5398.942608 | G7: 1588.331658 | H7: 0 | I7: 0.1 | J7: 0 | K7: 0
A8: 4 | B8: 94137.60111 | C8: 0.0564 | D8: 6987.274266 | E8: 582.2728555 | F8: 5309.360703 | G8: 1677.913564 | H8: 13000 | I8: 0.15 | J8: 14950 | K8: 0
A9: 5 | B9: 79459.68755 | C9: 0.0564 | D9: 6004.850814 | E9: 500.4042345 | F9: 4481.526378 | G9: 1523.324436 | H9: 13000 | I9: 0.25 | J9: =H9*(1+I9) -> 16250 | K9: 0
A10: 6 | B10: 64936.36311 | C10: 0.0564 | D10: 5003.225161 | E10: 416.9354301 | F10: 3662.41088 | G10: 1340.814281 | H10: 13000 | I10: 0.25 | J10: 16250 | K10: 0
A11: 7 | B11: 50595.54883 | C11: 0.0564 | D11: 3980.481773 | E11: 331.7068144 | F11: 2853.588954 | G11: 1126.892819 | H11: 0 | I11: 0.25 | J11: 0 | K11: 0
A12: 8 | B12: 49468.65601 | C12: 0.0564 | D12: 3980.481773 | E12: 331.7068144 | F12: 2790.032199 | G12: 1190.449574 | H12: 0 | I12: 0.25 | J12: 0 | K12: 0
A13: 9 | B13: 48278.20644 | C13: 0.0564 | D13: 3980.481773 | E13: 331.7068144 | F13: 2722.890843 | G13: 1257.590929 | H13: 0 | I13: 0.25 | J13: 0 | K13: 0
A14: 10 | B14: 47020.61551 | C14: 0.0564 | D14: 3980.481773 | E14: 331.7068144 | F14: 2651.962715 | G14: 1328.519058 | H14: 0 | I14: 0.25 | J14: 0 | K14: 0
A15: 11 | B15: 45692.09645 | C15: 0.0564 | D15: 3980.481773 | E15: 331.7068144 | F15: 2577.03424 | G15: 1403.447533 | H15: 0 | I15: 0.25 | J15: 0 | K15: 0
A16: 12 | B16: 44288.64892 | C16: 0.0564 | D16: 3980.481773 | E16: 331.7068144 | F16: 2497.879799 | G16: 1482.601974 | H16: 0 | I16: 0.25 | J16: 0 | K16: 0
A17: 13 | B17: 42806.04694 | C17: 0.0564 | D17: 3980.481773 | E17: 331.7068144 | F17: 2414.261048 | G17: 1566.220725 | H17: 0 | I17: 0.25 | J17: 0 | K17: 0
A18: 14 | B18: 41239.82622 | C18: 0.0564 | D18: 3980.481773 | E18: 331.7068144 | F18: 2325.926199 | G18: 1654.555574 | H18: 0 | I18: 0.25 | J18: 0 | K18: 0
A19: 15 | B19: 39585.27065 | C19: 0.0564 | D19: 3980.481773 | E19: 331.7068144 | F19: 2232.609264 | G19: 1747.872508 | H19: 0 | I19: 0.1 | J19: 0 | K19: 0
A20: 16 | B20: 37837.39814 | C20: 0.0564 | D20: 3980.481773 | E20: 331.7068144 | F20: 2134.029255 | G20: 1846.452518 | H20: 0 | I20: 0.1 | J20: 0 | K20: 0
A21: 17 | B21: 35990.94562 | C21: 0.0564 | D21: 3980.481773 | E21: 331.7068144 | F21: 2029.889333 | G21: 1950.59244 | H21: 0 | I21: 0.1 | J21: 0 | K21: 0
A22: 18 | B22: 34040.35318 | C22: 0.0564 | D22: 3980.481773 | E22: 331.7068144 | F22: 1919.875919 | G22: 2060.605853 | H22: 0 | I22: 0.1 | J22: 0 | K22: 0
A23: 19 | B23: 31979.74733 | C23: 0.0564 | D23: 3980.481773 | E23: 331.7068144 | F23: 1803.657749 | G23: 2176.824023 | H23: 0 | I23: 0.1 | J23: 0 | K23: 0
A24: 20 | B24: 29802.9233 | C24: 0.0564 | D24: 3980.481773 | E24: 331.7068144 | F24: 1680.884874 | G24: 2299.596898 | H24: 0 | I24: 0.1 | J24: 0 | K24: 0
A25: 21 | B25: 27503.32641 | C25: 0.0564 | D25: 3980.481773 | E25: 331.7068144 | F25: 1551.187609 | G25: 2429.294163 | H25: 0 | I25: 0.1 | J25: 0 | K25: 0
A26: 22 | B26: 25074.03224 | C26: 0.0564 | D26: 3980.481773 | E26: 331.7068144 | F26: 1414.175418 | G26: 2566.306354 | H26: 0 | I26: 0.1 | J26: 0 | K26: 0
A27: 23 | B27: 22507.72589 | C27: 0.0564 | D27: 3980.481773 | E27: 331.7068144 | F27: 1269.43574 | G27: 2711.046033 | H27: 0 | I27: 0.1 | J27: 0 | K27: 0
A28: 24 | B28: 19796.67986 | C28: 0.0564 | D28: 3980.481773 | E28: 331.7068144 | F28: 1116.532744 | G28: 2863.949029 | H28: 0 | I28: 0.1 | J28: 0 | K28: 0
A29: 25 | B29: 16932.73083 | C29: 0.0564 | D29: 3980.481773 | E29: 331.7068144 | F29: 955.0060186 | G29: 3025.475754 | H29: 0 | I29: 0.1 | J29: 0 | K29: 0
A30: 26 | B30: 13907.25507 | C30: 0.0564 | D30: 3980.481773 | E30: 331.7068144 | F30: 784.3691861 | G30: 3196.112587 | H30: 0 | I30: 0.1 | J30: 0 | K30: 0
A31: 27 | B31: 10711.14249 | C31: 0.0564 | D31: 3980.481773 | E31: 331.7068144 | F31: 604.1084362 | G31: 3376.373336 | H31: 0 | I31: 0.1 | J31: 0 | K31: 0
A32: 28 | B32: 7334.76915 | C32: 0.0564 | D32: 3980.481773 | E32: 331.7068144 | F32: 413.6809801 | G32: 3566.800793 | H32: 0 | I32: 0.1 | J32: 0 | K32: 0
A33: 29 | B33: 3767.968357 | C33: 0.0564 | D33: 3980.481773 | E33: 331.7068144 | F33: 212.5134154 | G33: 3767.968357 | H33: 0 | I33: 0.1 | J33: 0 | K33: 0
A34: 30 | B34: 4.547473509e-13 | H34: 0
D35: =SUM(D4:D33) -> 137495.5281 | J35: =SUM(J4:J33) -> 47450 | K35: =SUM(K4:K33) -> 0 | L35: =D35+J35+K35 -> 184945.5281
A41: 4 | B41: 179431.3499 | C41: 0.0564 | D41: =PMT(C41,30-A41,-B41) -> 13318.12197 | E41: =PMT(C41,23,-B41+13000) -> 13093.58174
D42: =SOLVE() -> 
